Cogmind - Beta 13 @@@ ROGUE MODE // 2024.04.21 @ 11:00:26 Player: YBOUZL Result: Destroyed by G-47 Trooper with Particle Gun Performance ------------- Evolutions (2) 1000 Regions Visited (4) 800 Robots Destroyed (38) 190 Value Destroyed (1284) 1284 Prototype IDs (4) 80 Alien Tech Used (0) 0 Bonus (11) 11 TOTAL SCORE: 3365 Bonus ------- High Alert Combat Kills 11 Cogmind --------- Core Integrity 0/550 Matter 237/300 Energy 9/100 System Corruption 0% Temperature Warm (132) Movement Core (500) Ox9 Location -8/Materials Parts ------- > --- POWER (1) -------- (None) > --- PROPULSION (4) --- (None) > --- UTILITY (3) ------ Medium Storage Unit Medium Storage Unit > --- WEAPON (3) ------- Improved EM Shotgun Particle Gun Particle Gun > --- INVENTORY (10) --- Particle Gun Peak State ------------ > --- POWER ------------ Nuclear Core > --- PROPULSION ------- Aluminum Leg Aluminum Leg Aluminum Leg Aluminum Leg > --- UTILITY ---------- Medium Storage Unit Medium Storage Unit Terrain Scanner > --- WEAPON ----------- Advanced Beam Rifle Heavy Particle Cannon Heavy Particle Cannon > --- INVENTORY -------- Improved Ion Engine Light Nuclear Core Light Nuclear Core Aluminum Leg Aluminum Leg Improved EM Shotgun Improved EM Shotgun Small Laser Particle Gun Particle Gun [Rating: 22] Favorites ----------- Power Cooled Ion Engine Engine Cooled Ion Engine Power Core Nuclear Core Propulsion Aluminum Leg Leg Aluminum Leg Utility Medium Storage Unit Device Terrain Scanner Storage Medium Storage Unit Weapon Heavy Particle Cannon Energy Gun Improved EM Shotgun Energy Cannon Heavy Particle Cannon Ballistic Gun Light Assault Rifle Ballistic Cannon Flak Cannon Launcher Mini Grenade Launcher Build | -11 -10 -9 -9 -8 ------- Run | Yrd Mat Mat Sto Mat Slots Evolved 4 | . . 2 . 2 Power . | . . . . . Propulsion 2 | . . 2 . . Utility 1 | . . . . 1 Weapon 1 | . . . . 1 Parts Attached 59 | 6 5 8 9 31 Power 15 | 1 1 1 1 11 Engine 10 | 1 1 1 1 6 Core 5 | . . . . 5 Reactor . | . . . . . Propulsion 14 | 2 1 2 4 5 Treads . | . . . . . Leg 14 | 2 1 2 4 5 Wheel . | . . . . . Hover . | . . . . . Flight . | . . . . . Utility 6 | 1 2 . . 3 Device 1 | . 1 . . . Storage 5 | 1 1 . . 3 Processor . | . . . . . Hackware . | . . . . . Protection . | . . . . . Artifact . | . . . . . Weapon 24 | 2 1 5 4 12 Energy Gun 15 | 1 1 3 3 7 Energy Cannon 5 | . . 2 . 3 Ballistic Gun 1 | 1 . . . . Ballistic Cannon 1 | . . . . 1 Launcher 2 | . . . 1 1 Special Weapon . | . . . . . Impact Weapon . | . . . . . Slashing Weapon . | . . . . . Piercing Weapon . | . . . . . Special Melee Weapon . | . . . . . Unidentified Prototypes 4 | . . 1 2 1 Parts Lost 22 | . 3 . . 19 Power 5 | . 1 . . 4 Propulsion 8 | . 1 . . 7 Utility 1 | . . . . 1 Weapon 8 | . 1 . . 7 Highest Loss Streak 16 | . 3 . . 16 To Critical Strikes . | . . . . . Average Slot Usage (%) 95 | . 96 95 99 89 Engine 8 | . 13 11 11 2 Core 1 | . . . . 5 Leg 36 | . 26 40 44 31 Device 10 | . 9 11 11 8 Storage 13 | . 16 11 11 15 Energy Gun 14 | . 16 15 15 10 Energy Cannon 6 | . . 6 5 13 Ballistic Gun 1 | . 11 . . . Naked Turns . | . . . . . Heaviest Build 43 | 11 21 28 31 43 Greatest Support 40 | 20 20 40 40 40 Greatest Overweight (x) 14 | . 1 . . 14 Average Overweight (x) . | . . . . . Largest Inventory Capacity 10 | 8 10 10 10 10 Average Capacity 9 | 7 9 10 10 10 Most Carried 10 | 5 4 7 10 10 Average Carried 6 | 2 2 4 8 8 Final Capacity 10 | 8 10 10 10 10 Final Carried 10 | 2 4 7 10 1 Class Distribution -------------------- 44% | Mutant 30% | Scavenger-Mutant 25% | Skirmisher Dominant Class ---------------- Mutant | -10/Materials Scavenger-Mutant | -9/Materials Scavenger-Mutant | -9/Storage Skirmisher | -8/Materials Resources | -11 -10 -9 -9 -8 ----------- Run | Yrd Mat Mat Sto Mat Matter Collected 732 | 260 55 80 110 227 Remotely . | . . . . . Salvage Created 1437 | . 188 109 614 526 Parts 84 | . 8 6 43 27 Haulers Intercepted 1 | . . . 1 . Recyclers Shooed 1 | . . 1 . . Parts Field Recycled . | . . . . . Retrieved Matter . | . . . . . Parts Self-Destructed . | . . . . . Prevented . | . . . . . Kills | -11 -10 -9 -9 -8 ------- Run | Yrd Mat Mat Sto Mat Combat Hostiles Destroyed 30 | . 5 2 12 11 Guns 14 | . 5 1 7 1 Cannons 12 | . . 1 3 8 AOE 4 | . . . 2 2 Classes Destroyed 9 | . 1 1 5 2 Worker 1 | . . . 1 . Builder 2 | . . . . 2 Hauler 1 | . . . 1 . Operator 1 | . . . 1 . Watcher 3 | . . . 2 1 Swarmer 4 | . . . 4 . Grunt 19 | . 5 1 5 8 Sentry 6 | . . 1 3 2 Hunter 1 | . . . . 1 Best Kill Streak 4 | . 4 1 4 3 Combat Bots Only 4 | . 4 1 3 2 Max Kills in Single Turn 2 | . 1 1 2 2 Gunslinging 1 | . . . 1 . Exploded 2 | . . . 1 2 Melee . | . . . . . Uniques/NPCs Destroyed . | . . . . . Combat | -11 -10 -9 -9 -8 -------- Run | Yrd Mat Mat Sto Mat Hostile Shots Fired 279 | . 57 9 37 176 Missed 73 | . 10 1 15 47 Damage Taken 3314 | . 511 110 332 2361 Core 760 | . 121 45 44 550 Absorbed by Shields . | . . . . . Core Remaining (%) 76 | 100 51 . 77 . Volleys Fired 76 | . 19 6 23 28 Largest 3 | . 2 2 2 3 Hottest 215 | . 90 115 150 215 Shots Fired 172 | . 36 12 45 79 Gun 107 | . 36 9 35 27 Cannon 61 | . . 3 8 50 Launcher 4 | . . . 2 2 Special . | . . . . . Kinetic 22 | . 15 . . 7 Thermal 111 | . 21 12 8 70 Explosive 4 | . . . 2 2 Electromagnetic 35 | . . . 35 . Robot Hit Streak 12 | . 9 5 11 12 Robot Miss Streak 5 | . 3 1 3 5 Penetration Max . | . . . . . Secondary Targets 1 | . . . 1 . Max Gunslinging Chain 1 | . . . 1 . Shots Hit Robots 121 | . 26 8 33 54 Core Hits 73 | . 12 4 24 33 Critical Kills . | . . . . . Critical Parts Destroyed . | . . . . . Critical Strikes 3 | . 2 . . 1 Burn 3 | . 2 . . 1 Melee Attacks . | . . . . . Impact . | . . . . . Slashing . | . . . . . Piercing . | . . . . . Sneak Attacks . | . . . . . Combat Hostiles . | . . . . . Follow-up Attacks . | . . . . . Damage Inflicted 2833 | . 314 131 796 1592 Guns 1179 | . 291 56 472 360 Cannons 1085 | . . 75 150 860 Explosions 528 | . . . 156 372 Melee . | . . . . . Ramming 41 | . 23 . 18 . Kinetic 189 | . 79 . . 110 Thermal 1643 | . 212 131 190 1110 Explosive 488 | . . . 116 372 Electromagnetic 472 | . . . 472 . Impact . | . . . . . Slashing . | . . . . . Piercing . | . . . . . Highest Corruption . | . . . . . Average Corruption . | . . . . . Corruption Purged . | . . . . . Corruption Blocked . | . . . . . Overload Shots . | . . . . . Overflow Damage . | . . . . . Projectiles . | . . . . . Explosions . | . . . . . Melee . | . . . . . Knockbacks 2 | . 1 . . 1 Impact 1 | . 1 . . . Kinetic 1 | . . . . 1 Secondary . | . . . . . Self-Inflicted Damage 71 | . . . 39 32 Shots 2 | . . . 1 1 Rammed . | . . . . . Targets Rammed 6 | . 4 . 1 1 Kicked 6 | . 4 . 1 1 Crushed . | . . . . . Highest Temperature 655 | . 336 90 342 655 Average Temperature 170 | . 164 42 85 223 Received Heat Transfer 1317 | . 285 36 114 882 Effects 19 | . . . 1 18 Shutdowns 5 | . . . . 5 Energy Bleed 5 | . . . 1 4 Interference 2 | . . . . 2 Matter Decay 1 | . . . . 1 Short Circuit 1 | . . . . 1 Damage (minor) 4 | . . . . 4 Damage (core) 1 | . . . . 1 Siege Activations . | . . . . . Robots Corrupted . | . . . . . Combat Hostiles . | . . . . . Parts Fried 2 | . . . 2 . Impact Corruptions . | . . . . . Robots Melted . | . . . . . Combat Hostiles . | . . . . . Parts Melted 4 | . 3 . . 1 Heat Transferred 2982 | . 765 236 222 1759 Parts Sabotaged . | . . . . . Parts Stolen . | . . . . . Parts Stripped . | . . . . . Power Chain Reactions 1 | . . . 1 . Alert | -11 -10 -9 -9 -8 ------- Run | Yrd Mat Mat Sto Mat Peak Influence 434 | . 120 140 336 434 Initial 141 | . . 50 59 141 Average 195 | . 52 104 225 304 Maximum Alert Level 2 | . . . 1 2 Low Security (%) 55 | 100 100 100 38 26 Level 1 38 | . . . 61 53 Level 2 6 | . . . . 20 Level 3 . | . . . . . Level 4 . | . . . . . Level 5 . | . . . . . High Security . | . . . . . Max Security . | . . . . . Squads Dispatched 8 | . 2 1 . 5 Investigation 2 | . . . . 2 Extermination . | . . . . . Reinforcement 6 | . 2 1 . 3 Assault . | . . . . . Garrison . | . . . . . Intercept . | . . . . . Searches Triggered . | . . . . . Construction Impeded 1 | . . . . 1 Haulers Reinforced . | . . . . . Active Scanning Responses . | . . . . . Cargo Convoy Interrupts . | . . . . . Stealth | -11 -10 -9 -9 -8 --------- Run | Yrd Mat Mat Sto Mat Distress Signals 5 | . 1 . 1 3 Communications Jammed . | . . . . . Distress Signals . | . . . . . Times Spotted 51 | . 9 3 16 23 Peak Tracking Total 8 | . 5 1 3 8 Tactical Retreats 1 | . . . . 1 Traps | -11 -10 -9 -9 -8 ------- Run | Yrd Mat Mat Sto Mat Traps Triggered 2 | . . . 1 1 Indirectly . | . . . . . Trap Hack Attempts . | . . . . . Triggered . | . . . . . Disarmed . | . . . . . Reprogrammed . | . . . . . Reused . | . . . . . Traps Extracted . | . . . . . Installed . | . . . . . Triggered 1 | . . . 1 . Machines | -11 -10 -9 -9 -8 ---------- Run | Yrd Mat Mat Sto Mat Machines Disabled 7 | . . . 3 4 Max in Single Turn 2 | . . . 2 2 Garrison Access 1 | . . . . 1 Machines Repaired . | . . . . . Machines Dismantled . | . . . . . Machines Sabotaged . | . . . . . Overloaded Fab Kills . | . . . . . Hacking | -11 -10 -9 -9 -8 --------- Run | Yrd Mat Mat Sto Mat Machines Accessed 4 | . . . 2 2 Terminals 3 | . . . 2 1 Fabricators . | . . . . . Repair Stations . | . . . . . Recycling Units . | . . . . . Scanalyzers . | . . . . . Garrison Access 1 | . . . . 1 Total Hacks 15 | . . . 10 5 Successful 11 | . . . 8 3 Failed 3 | . . . 1 2 Catastrophic . | . . . . . Database Lockouts 1 | . . . 1 . Manual . | . . . . . Terminals 14 | . . . 10 4 Fabricators . | . . . . . Repair Stations . | . . . . . Recycling Units . | . . . . . Scanalyzers . | . . . . . Garrison Access 1 | . . . . 1 Terminal Hacks 10 | . . . 8 2 Record 3 | . . . 3 . Branch Access Points 1 | . . . 1 . Alert Level 2 | . . . 1 1 Locate Traps 2 | . . . 2 . Registered Components 1 | . . . 1 . Zone Layout 1 | . . . . 1 Fabricator Hacks . | . . . . . Repair Station Hacks . | . . . . . Recycling Unit Hacks . | . . . . . Scanalyzer . | . . . . . Garrison Access Hacks 1 | . . . . 1 Seal Access 1 | . . . . 1 Unauthorized Hacks . | . . . . . Terminals . | . . . . . Fabricators . | . . . . . Repair Stations . | . . . . . Recycling Units . | . . . . . Scanalyzers . | . . . . . Garrison Access . | . . . . . Data Cores Recovered 1 | . . . 1 . Used . | . . . . . Hacking Detections 3 | . . . 2 1 Full Trace Events 1 | . . . . 1 Feedback Events . | . . . . . Feedback Blocked . | . . . . . Robot Schematics Acquired . | . . . . . Robots Built . | . . . . . Authchips . | . . . . . Time . | . . . . . Total Robot Build Rating . | . . . . . Part Schematics Acquired . | . . . . . Parts Built . | . . . . . Authchips . | . . . . . Time . | . . . . . Total Part Build Rating . | . . . . . Parts Repaired . | . . . . . Time . | . . . . . Parts Recycled . | . . . . . Recycled Matter . | . . . . . Retrieved Matter . | . . . . . Retrieved Components . | . . . . . Parts Scanalyzed . | . . . . . Part Schematics Acquired . | . . . . . Parts Damaged . | . . . . . Bothacking | -11 -10 -9 -9 -8 ------------ Run | Yrd Mat Mat Sto Mat Used RIF Installer . | . . . . . Robots Hacked . | . . . . . Non-combat . | . . . . . Combat . | . . . . . Robot Hacks Applied . | . . . . . Relay Couplers Released . | . . . . . Fabnet Peak Effective % . | . . . . . Robots Rewired . | . . . . . Allies Hacked . | . . . . . Hacks Repelled . | . . . . . Allies | -11 -10 -9 -9 -8 -------- Run | Yrd Mat Mat Sto Mat Total Allies . | . . . . . Largest Group . | . . . . . Highest-Rated Group . | . . . . . Highest-Rated Ally . | . . . . . Total Orders . | . . . . . Ally Attacks . | . . . . . Total Damage . | . . . . . Kills . | . . . . . Allies Corrupted . | . . . . . Allies Melted . | . . . . . Intel | -11 -10 -9 -9 -8 ------- Run | Yrd Mat Mat Sto Mat Robot Analysis Total . | . . . . . Derelict Logs Recovered . | . . . . . Drone Launches . | . . . . . Drone Recoveries . | . . . . . Exploration | -11 -10 -9 -9 -8 ------------- Run | Yrd Mat Mat Sto Mat Turns Passed 1523 | 68 237 202 562 454 Spaces Moved 880 | 54 124 140 386 176 Core 18 | 14 . . . 4 Treads . | . . . . . Legs 862 | 40 124 140 386 172 Wheels . | . . . . . Hover . | . . . . . Flight . | . . . . . Fastest Speed 50 | 50 120 120 120 120 Average Speed 132 | 101 136 120 120 178 Slowest Speed 750 | 120 190 120 120 750 Overloaded Moves . | . . . . . Propulsion Burnouts . | . . . . . Robots Hopped . | . . . . . Cave-ins Triggered . | . . . . . Exploration Rate (%) 20 | 3 26 8 52 14 Regions Visited 4 Branch Regions 1 Pre-discovered Areas 1 | . . . 1 . Known Exits Taken . | . . . . . Unknown Exits Taken 4 | 1 1 1 1 . Scrap Searched . | . . . . . Spaces Dug . | . . . . . Terrain Destroyed 49 | . . . 38 11 Melee . | . . . . . Projectile 8 | . . . 2 6 AOE 41 | . . . 36 5 Terrain Rammed . | . . . . . Walls Destroyed . | . . . . . Machines Disabled . | . . . . . Actions | -11 -10 -9 -9 -8 --------- Run | Yrd Mat Mat Sto Mat Total 1080 | 67 157 160 440 256 Wait . | . . . . . Move 876 | 53 123 139 385 176 Hop . | . . . . . Pick Up 44 | 8 6 6 12 12 Fast Attach . | . . . . . Attach 31 | 6 4 3 1 17 Detach 2 | . . . 1 1 Swap 28 | . 1 5 8 14 Drop 17 | . . 1 9 7 Fire 76 | . 19 6 23 28 Melee . | . . . . . Ram . | . . . . . Kick 6 | . 4 . 1 1 Crush . | . . . . . Escape Stasis . | . . . . . Rewire . | . . . . . Trap . | . . . . . Miscellaneous . | . . . . . Route ------- -11/Scrapyard -10/Materials -9/Materials -9/Storage (discovered 2 exits: *Mat / Rec) -8/Materials History --------- Turn | Location | Event 12 | -11/Scrapyard | Discovered new exit (range 15) 69 | -11/Scrapyard | Entered Materials 184 | -10/Materials | Discovered new exit (range 16) 299 | -10/Materials | Lost 3 parts (1p1n1w) 306 | -10/Materials | Entered another Materials area 306 | -9/Materials | Evolved 2 slots: Propulsion x2 327 | -9/Materials | Build established: Mutant 425 | -9/Materials | Discovered new exit (range 16) 508 | -9/Materials | Entered Storage 680 | -9/Storage | Build established: Scavenger-Mutant 732 | -9/Storage | Identified exit to Recycling 882 | -9/Storage | Central database locked down 904 | -9/Storage | Learned location of Armory (-3) 1052 | -9/Storage | Discovered new exit (range 15) 1070 | -9/Storage | Entered Materials 1070 | -8/Materials | Evolved 2 slots: Utility x1, Weapon x1 1237 | -8/Materials | Lost 3 parts (1p1n1w) 1499 | -8/Materials | Core integrity fell below 50% 1515 | -8/Materials | Core integrity fell below 20% 1524 | -8/Materials | Destroyed by G-47 Trooper with Particle Gun Last Messages --------------- Aluminum Leg destroyed. Imp. Ion Engine destroyed. Knocked back. U-05 Engineer builds a Wall. G-47 Trooper destroyed. Slug penetrates Wall. Knocked back. Flak Cannon destroyed. U-05 Engineer builds a Wall. Hvy. Particle Cannon destroyed. U-05 Engineer builds a Wall. Spread Laser destroyed. U-05 Engineer builds a Wall. Sml. Laser destroyed. Terrain Scanner destroyed. Hvy. Particle Cannon destroyed. Critical hit (Burn: +37). U-05 Engineer builds a Wall. Critical hit (Burn: +37). U-05 Engineer builds a Wall. Map ----- +----------------------------------------------------+ | ?????????????????????????????????????????????# | | ?????????????????????????????????????????????## | | ??????????????????????????????????????????????# | | ??????????????????????????????????????????????# | | ????????????????????????????????# ########### | | ????????????????????????????????# | | ????????????????????????????????# | | ????????????????????????????????# | | ????????????????????????????????############### | | ??????????????????????????????????????????????# | | ???????????????????????????????????????????#??# | | ????????????????????????????????????#???#?????# | | ??????????????????????????????????????#???????# | | ??????????????????????????????????##????????#?# | | ????????????????????????????? ???##??????#???## | | ????????????????????????????? ??????????#????# % | | ?????????????????????? ?????????############## [* | | ???????????????????????? ?????? # + | | ??????????????????????? ???????? # ## | | ??????????????????????????? ???? # """ ## | | ?????????????????#??????#???????## # "R #### # | | ?????????????????????????????##??# # """ #??# # | | ??????????????? ??????#??####????# # #### # | | ??????????????????????#########??# ###+####### # | | ??????????????? ?????# uu !##### | | ??????????????????????# @ ###"" | | ??????????????????????# % ###"" "" | | ?????????????? ???????# ggHg#?#"T """ """ " | | ?????????????????????## g[g! #?#"" """ """ T" | | ??????????????????????# !t| ###"" "%" "%" " | | ??????????????+???########/####### % | | ?????????????? !%= | | ??????????????? % = % | | ????????????? = % % | | ????????????# ###################+######" "#" "# | | ?????????????????????#???#????# """ """ ##"""#"G"# | | ???????????????????????????#??# """ """ ###### " # | | ??????????????????????##?#??#?# """ """ #????##### | | ????????????????????????#???### #####??# | | ???????????????????#???#????#?# # #??# | | ??????????????????????#???????# ### #??# | | ??????????????????????#??##???# #?# #??# | | ??????????????????????????????# #?#?#####+ | | ??????????????????????????????###########?# | | ?????????????????????????????????????????????????? | | ?????????????????????????????????????????????????? | | ?????????????????????????????????????????????????? | | ?????????????????????????????????????????????????? | | ?????????????????????????????#?#?????????????????? | | ?????????????????????????????????????????????????? | +----------------------------------------------------+ Best States ------------- Heat Dissipation 31 Energy Generation 14 Energy Capacity 280 Matter Stores 300 Matter Capacity 300 Sight Range 16 Terrain Scan Range 14 Terrain Scan Density 10 Evasion (%) 55 Item Schematics ----------------- None Robot Schematics ------------------ None Fabricated ------------ Nothing Alien Tech Used ----------------- None Achievements -------------- None Challenges ------------ None Game ------ Seed ThermoelectricHeatProtection Manual? 0 Play Time 00:30:51 Cumulative 4.6 hours Start 2024.04.21 @ 10:18:03 End 2024.04.21 @ 11:00:26 Sessions 3 Manual Loads 0 Difficulty Rogue Special Mode None Game No. 13 Rogue 13 Adventurer 0 Explorer 0 Win Type - Total 0 Types 0/0/0/0/0/0/0/0/0 Lore% 12 Gallery% 12 Achievement% 11 Wizard Run 0 Options --------- Layout 1 ASCII 0 Keyboard 0 Movement Mouse Keybinds 0 Fullscreen 1 Font 24/Smallcaps Map View 50x35 Zoom Use 0% Tactical HUD 0 Map Filters NONE Filters NONE Steam 1 RUN: 7e6eaa57-7793-47e0-9aed-d1614e51a106